fUST/lending_fUST_20250607
["ID","MTS","AMOUNT","RATE_DAILY","PERIOD"]
[364821762,1749255038290,-440.0,0.00019452,2]
[364821763,1749255038300,-440.0,0.00019452,2]
[364821764,1749255038310,-3769.0,0.00019452,2]
[364821765,1749255038319,-440.0,0.00019452,2]
[364821766,1749255038329,-1680.78,0.00019452,2]
[364821767,1749255038339,-425.52434879,0.00019452,2]
[364821768,1749255038349,-420.0,0.00019452,2]
[364821769,1749255038358,-420.0,0.00019452,2]
[364821770,1749255038368,-701.71,0.00019561,2]
[364821771,1749255038377,-500.0,0.00019565,2]
[364821772,1749255038387,-502.55203898,0.00019565,2]
[364821773,1749255038397,-500.0,0.00019565,2]
[364821774,1749255038407,-503.5838266,0.00019631,2]
[364821775,1749255038417,-500.0,0.00019631,2]
[364821776,1749255038427,-1000.0,0.00019721,2]
[364821777,1749255038437,-701.71,0.00019725,2]
[364821778,1749255038447,-366.71,0.00019726,2]
[364821779,1749255038457,-440.0,0.00019726,2]
[364821780,1749255038466,-440.0,0.00019726,2]
[364821781,1749255038478,-440.0,0.00019726,2]
[364821782,1749255038488,-440.0,0.00019726,2]
[364821783,1749255038498,-440.0,0.00019726,2]
[364821784,1749255038507,-500.0,0.00019726,2]
[364821785,1749255038517,-440.0,0.00019726,2]
[364821786,1749255038527,-440.0,0.00019726,2]
[364821787,1749255038537,-410.0,0.00019726,2]
[364821788,1749255038547,-554.16,0.00019726,2]
[364821789,1749255038557,-410.0,0.00019726,2]
[364821790,1749255038567,-410.0,0.00019726,2]
[364821791,1749255038577,-440.0,0.00019726,2]
[364821792,1749255038587,-410.0,0.00019726,2]
[364821793,1749255038597,-410.0,0.00019726,2]
[364821794,1749255038607,-440.0,0.00019726,2]
[364821795,1749255038617,-410.0,0.00019726,2]
[364821796,1749255038627,-440.0,0.00019726,2]
[364821797,1749255038636,-440.0,0.00019726,2]
[364821798,1749255038646,-440.0,0.00019726,2]
[364821799,1749255038656,-410.0,0.00019726,2]
[364821800,1749255038665,-440.0,0.00019726,2]
[364821801,1749255038674,-427.06370267,0.00019726,2]
[364821802,1749255038683,-410.0,0.00019726,2]
[364821803,1749255038693,-410.0,0.00019726,2]
[364821804,1749255038703,-440.0,0.00019726,2]
[364821805,1749255038712,-410.0,0.00019726,2]
[364821806,1749255038724,-440.0,0.00019726,2]
[364821807,1749255038736,-440.0,0.00019726,2]
[364821808,1749255038746,-440.0,0.00019726,2]
[364821809,1749255038756,-440.0,0.00019726,2]
[364821810,1749255038767,-307.11,0.00019726,2]
[364821811,1749255038776,-440.0,0.00019726,2]
[364821812,1749255038785,-440.0,0.00019726,2]
[364821813,1749255038795,-440.0,0.00019726,2]
[364821814,1749255038805,-440.0,0.00019726,2]
[364821815,1749255038815,-440.0,0.00019726,2]
[364821816,1749255038827,-440.0,0.00019726,2]
[364821817,1749255038836,-440.0,0.00019726,2]
[364821818,1749255038846,-440.0,0.00019726,2]
[364821819,1749255038856,-440.0,0.00019726,2]
[364821820,1749255038867,-440.0,0.00019726,2]
[364821821,1749255038877,-440.0,0.00019726,2]
[364821822,1749255038887,-500.0,0.00019726,2]
[364821823,1749255038897,-440.0,0.00019726,2]
[364821824,1749255038907,-440.0,0.00019726,2]
[364821825,1749255038917,-440.0,0.00019726,2]
[364821826,1749255038927,-440.0,0.00019726,2]
[364821827,1749255038937,-400.0,0.00019726,2]
[364821828,1749255038948,-440.0,0.00019726,2]
[364821829,1749255038958,-440.0,0.00019726,2]
[364821830,1749255038969,-440.0,0.00019726,2]
[364821831,1749255038981,-478.72458484,0.00019726,2]
[364821832,1749255038991,-640.15,0.00019726,2]
[364821833,1749255039000,-4753.64,0.00019726,2]
[364821834,1749255039010,-440.0,0.00019726,2]
[364821835,1749255039019,-440.0,0.00019726,2]
[364821836,1749255039029,-189.70810996,0.00019726,2]
[364821837,1749255039039,-440.0,0.00019726,2]
[364821838,1749255039048,-1050.35,0.00019726,2]
[364821839,1749255039058,-440.0,0.00019726,2]
[364821840,1749255039068,-3090.81,0.00019726,2]
[364821841,1749255039077,-440.0,0.00019726,2]
[364821842,1749255039087,-440.0,0.00019726,2]
[364821843,1749255039097,-440.0,0.00019726,2]
[364821844,1749255039106,-400.0,0.00019726,2]
[364821845,1749255039115,-393.3646321,0.00019726,2]
[364821846,1749255039125,-440.0,0.00019726,2]
[364821847,1749255039135,-704.83,0.00019726,2]
[364821848,1749255039144,-440.0,0.00019726,2]
[364821849,1749255039154,-440.0,0.00019726,2]
[364821850,1749255039163,-1715.61,0.00019726,2]
[364821851,1749255039173,-2851.73,0.00019726,2]
[364821852,1749255039183,-1510.1,0.00019726,2]
[364821853,1749255039193,-270.0,0.00019726,2]
[364821854,1749255039202,-491.82,0.00019726,2]
[364821855,1749255039212,-440.0,0.00019726,2]
[364821856,1749255039221,-440.0,0.00019726,2]
[364821857,1749255039231,-410.0,0.00019726,2]
[364821858,1749255039242,-440.0,0.00019726,2]
[364821859,1749255039252,-440.0,0.00019726,2]
[364821860,1749255039261,-440.0,0.00019726,2]
[364821861,1749255039272,-577.36,0.00019726,2]
[364821862,1749255039282,-440.0,0.00019726,2]
[364821863,1749255039292,-440.0,0.00019726,2]
[364821864,1749255039302,-440.0,0.00019726,2]
[364821865,1749255039313,-440.0,0.00019726,2]
[364821866,1749255039322,-440.0,0.00019726,2]
[364821867,1749255039332,-440.0,0.00019726,2]
[364821868,1749255039341,-240.0,0.00019726,2]
[364821869,1749255039351,-440.0,0.00019726,2]
[364821870,1749255039360,-440.0,0.00019726,2]
[364821871,1749255039369,-440.0,0.00019726,2]
[364821872,1749255039379,-440.0,0.00019726,2]
[364821873,1749255039388,-440.0,0.00019726,2]
[364821874,1749255039397,-440.0,0.00019726,2]
[364821875,1749255039407,-440.0,0.00019726,2]
[364821876,1749255039416,-440.0,0.00019726,2]
[364821877,1749255039425,-1349.1,0.00019726,2]
[364821878,1749255039435,-440.0,0.00019726,2]
[364821879,1749255039444,-440.0,0.00019726,2]
[364821880,1749255039453,-440.0,0.00019726,2]
[364821881,1749255039463,-440.0,0.00019726,2]
[364821882,1749255039472,-440.0,0.00019726,2]
[364821883,1749255039483,-440.0,0.00019726,2]
[364821884,1749255039493,-440.0,0.00019726,2]
[364821885,1749255039595,-440.0,0.00019726,2]
[364821886,1749255039605,-440.0,0.00019726,2]
[364821887,1749255039616,-440.0,0.00019726,2]
[364821888,1749255039625,-440.0,0.00019726,2]
[364821889,1749255039634,-440.0,0.00019726,2]
[364821890,1749255039644,-440.0,0.00019726,2]
[364821891,1749255039654,-440.0,0.00019726,2]
[364821892,1749255039663,-440.0,0.00019726,2]
[364821893,1749255039673,-1632.05,0.00019726,2]
[364821894,1749255039682,-440.0,0.00019726,2]
[364821895,1749255039692,-440.0,0.00019726,2]
[364821896,1749255039701,-440.0,0.00019726,2]
[364821897,1749255039710,-440.0,0.00019726,2]
[364821898,1749255039720,-440.0,0.00019726,2]
[364821899,1749255039731,-440.0,0.00019726,2]
[364821900,1749255039740,-440.0,0.00019726,2]
[364821901,1749255039750,-878.96,0.00019726,2]
[364821902,1749255039759,-440.0,0.00019726,2]
[364821903,1749255039769,-440.0,0.00019726,2]
[364821904,1749255039779,-596.71,0.00019726,2]
[364821905,1749255039789,-556.00576966,0.00019726,2]
[364821906,1749255039798,-440.0,0.00019726,2]
[364821907,1749255039811,-440.0,0.00019726,2]
[364821908,1749255039821,-440.0,0.00019726,2]
[364821909,1749255039831,-2752.03,0.00019726,2]
[364821910,1749255039840,-440.0,0.00019726,2]
[364821911,1749255039850,-400.0,0.00019726,2]
[364821912,1749255039859,-579.14,0.00019726,2]
[364821913,1749255039869,-440.0,0.00019726,2]
[364821914,1749255039878,-440.0,0.00019726,2]
[364821915,1749255039888,-3769.0,0.00019726,2]
[364821916,1749255039898,-410.0,0.00019726,2]
[364821917,1749255039909,-1680.78,0.00019726,2]
[364821918,1749255039918,-160.0,0.00019808,2]
[364821919,1749255039928,-212.976918,0.00019808,2]
[364821921,1749255039938,-834.50537533,0.00019808,2]
[364821923,1749255039948,-229.52673067,0.00019808,2]
[364821925,1749255039958,-423.83542519,0.00019808,2]
[364821928,1749255039968,-715.08884399,0.000199,2]
[364821930,1749255039979,-701.71,0.0001993,2]
[364821932,1749255039990,-701.71,0.00019999,2]
[364821933,1749255040000,-440.0,0.0002,2]
[364821934,1749255040011,-440.0,0.0002,2]
[364821935,1749255040022,-232.88115435,0.0002,2]
[364821936,1749255040033,-400.0,0.0002,2]
[364821937,1749255040044,-440.0,0.0002,2]
[364821938,1749255040054,-485.37,0.0002,2]
[364821939,1749255040065,-410.0,0.0002,2]
[364821940,1749255040077,-440.0,0.0002,2]
[364821941,1749255040087,-440.0,0.0002,2]
[364821942,1749255040098,-440.0,0.0002,2]
[364821943,1749255040109,-390.0,0.0002,2]
[364821944,1749255040120,-390.0,0.0002,2]
[364821945,1749255040131,-199.99,0.0002,2]
[364821946,1749255040142,-440.0,0.0002,2]
[364821947,1749255040152,-440.0,0.0002,2]
[364821948,1749255040163,-390.0,0.0002,2]
[364821949,1749255040176,-440.0,0.0002,2]
[364821950,1749255040188,-440.0,0.0002,2]
[364821951,1749255040200,-440.0,0.0002,2]
[364821952,1749255040210,-440.0,0.0002,2]
[364821953,1749255040221,-440.0,0.0002,2]
[364821954,1749255040239,-440.0,0.0002,2]
[364821955,1749255040250,-440.0,0.0002,2]
[364821956,1749255040267,-441.17,0.0002,2]
[364821957,1749255040279,-440.0,0.0002,2]
[364821958,1749255040291,-440.0,0.0002,2]
[364821959,1749255040301,-440.0,0.0002,2]
[364821960,1749255040315,-440.0,0.0002,2]
[364821962,1749255040327,-440.0,0.0002,2]
[364821964,1749255040338,-500.0,0.0002,2]
[364821966,1749255040350,-470.0,0.0002,2]
[364821967,1749255040361,-390.0,0.0002,2]
[364821968,1749255040372,-440.0,0.0002,2]
[364821970,1749255040383,-440.0,0.0002,2]
[364821971,1749255040395,-440.0,0.0002,2]
[364821972,1749255040406,-440.0,0.0002,2]
[364821974,1749255040417,-390.0,0.0002,2]
[364821975,1749255040428,-640.15,0.0002,2]
[364821976,1749255040438,-2617.26846261,0.0002,2]
[364821980,1749255040584,-2136.37153739,0.0002,2]
[364821981,1749255040594,-440.0,0.0002,2]
[364821982,1749255040604,-390.0,0.0002,2]
[364821983,1749255040613,-440.0,0.0002,2]
[364821984,1749255040623,-1050.35,0.0002,2]
[364821985,1749255040633,-570.86355408,0.0002,2]
[364821986,1749255040643,-3090.81,0.0002,2]
[364821987,1749255040654,-440.0,0.0002,2]
[364821988,1749255040664,-440.0,0.0002,2]
[364821989,1749255040674,-440.0,0.0002,2]
[364821990,1749255040684,-440.0,0.0002,2]
[364821991,1749255040694,-704.83,0.0002,2]
[364821992,1749255040704,-440.0,0.0002,2]
[364821993,1749255040714,-440.0,0.0002,2]
[364821994,1749255040729,-1715.61,0.0002,2]
[364821995,1749255040740,-2851.73,0.0002,2]
[364821996,1749255040749,-1510.1,0.0002,2]
[364821997,1749255040759,-491.82,0.0002,2]
[364821998,1749255040770,-440.0,0.0002,2]
[364821999,1749255040780,-400.0,0.0002,2]
[364822000,1749255040790,-440.0,0.0002,2]
[364822001,1749255040800,-440.0,0.0002,2]
[364822002,1749255040810,-440.0,0.0002,2]
[364822003,1749255040820,-577.36,0.0002,2]
[364822004,1749255040830,-400.0,0.0002,2]
[364822005,1749255040840,-440.0,0.0002,2]
[364822006,1749255040849,-440.0,0.0002,2]
[364822007,1749255040859,-440.0,0.0002,2]
[364822008,1749255040869,-459.89000075,0.0002,2]
[364822009,1749255040879,-440.0,0.0002,2]
[364822010,1749255040888,-440.0,0.0002,2]
[364822011,1749255040898,-400.0,0.0002,2]
[364822012,1749255040907,-440.0,0.0002,2]
[364822013,1749255040917,-440.0,0.0002,2]
[364822014,1749255040926,-400.0,0.0002,2]
[364822015,1749255040936,-440.0,0.0002,2]
[364822016,1749255040945,-440.0,0.0002,2]
[364822017,1749255040955,-1349.1,0.0002,2]
[364822018,1749255040966,-440.0,0.0002,2]
[364822019,1749255040977,-440.0,0.0002,2]
[364822020,1749255040992,-440.0,0.0002,2]
[364822021,1749255041002,-440.0,0.0002,2]
[364822022,1749255041012,-440.0,0.0002,2]
[364822023,1749255041021,-490.12020817,0.0002,2]
[364822024,1749255041031,-440.0,0.0002,2]
[364822025,1749255041040,-440.0,0.0002,2]
[364822026,1749255041050,-440.0,0.0002,2]
[364822027,1749255041060,-440.0,0.0002,2]
[364822028,1749255041070,-400.0,0.0002,2]
[364822029,1749255041079,-440.0,0.0002,2]
[364822030,1749255041089,-440.0,0.0002,2]
[364822031,1749255041099,-440.0,0.0002,2]
[364822032,1749255041108,-440.0,0.0002,2]
[364822033,1749255041117,-440.0,0.0002,2]
[364822034,1749255041127,-1632.05,0.0002,2]
[364822035,1749255041136,-440.0,0.0002,2]
[364822036,1749255041146,-440.0,0.0002,2]
[364822037,1749255041155,-440.0,0.0002,2]
[364822038,1749255041165,-440.0,0.0002,2]
[364822039,1749255041175,-440.0,0.0002,2]
[364822040,1749255041185,-440.0,0.0002,2]
[364822041,1749255041194,-440.0,0.0002,2]
[364822042,1749255041205,-878.96,0.0002,2]
[364822043,1749255041214,-440.0,0.0002,2]
[364822044,1749255041224,-467.34028706,0.0002,2]
[364822045,1749255041238,-596.71,0.0002,2]
[364822046,1749255041248,-540.0,0.0002,2]
[364822047,1749255041258,-578.87271069,0.0002,2]
[364822048,1749255041268,-400.0,0.0002,2]
[364822049,1749255041278,-2752.03,0.0002,2]
[364822050,1749255041287,-440.0,0.0002,2]
[364822051,1749255041297,-579.14,0.0002,2]
[364822052,1749255041307,-440.0,0.0002,2]
[364822053,1749255041318,-440.0,0.0002,2]
[364822054,1749255041327,-3769.0,0.0002,2]
[364822055,1749255041337,-1680.78,0.0002,2]
[364822056,1749255041346,-1200.0,0.00020052,2]
[364822057,1749255041356,-715.08884394,0.00020072,2]
[364822058,1749255041365,-183.501,0.00020127,2]
[364822059,1749255041375,-503.73758269,0.00020179,2]
[364822060,1749255041385,-311.602679,0.00020187,2]
[364822061,1749255041394,-715.08884394,0.00020245,2]
[364822062,1749255041404,-1500.0,0.00020268,2]
[364822063,1749255041414,-701.71,0.00020272,2]
[364822064,1749255041423,-440.0,0.00020273,2]
[364822065,1749255041433,-440.0,0.00020273,2]
[364822066,1749255041443,-390.0,0.00020273,2]
[364822067,1749255041453,-440.0,0.00020273,2]
[364822068,1749255041464,-440.0,0.00020273,2]
[364822069,1749255041474,-392.49,0.00020273,2]
[364822070,1749255041487,-345.87177744,0.00020273,2]
[364822071,1749255041497,-440.0,0.00020273,2]
[364822072,1749255041507,-380.0,0.00020273,2]
[364822073,1749255041516,-380.0,0.00020273,2]
[364822074,1749255041525,-440.0,0.00020273,2]
[364822075,1749255041536,-380.0,0.00020273,2]
[364822076,1749255041546,-380.0,0.00020273,2]
[364822077,1749255041556,-440.0,0.00020273,2]
[364822078,1749255041566,-440.0,0.00020273,2]
[364822079,1749255041575,-440.0,0.00020273,2]
[364822080,1749255041585,-380.0,0.00020273,2]
[364822081,1749255041595,-440.0,0.00020273,2]
[364822082,1749255041605,-440.0,0.00020273,2]
[364822083,1749255041615,-440.0,0.00020273,2]
[364822084,1749255041624,-440.0,0.00020273,2]
[364822085,1749255041634,-440.0,0.00020273,2]
[364822086,1749255041644,-640.15,0.00020273,2]
[364822087,1749255041653,-4753.64,0.00020273,2]
[364822088,1749255041663,-440.0,0.00020273,2]
[364822089,1749255041763,-440.0,0.00020273,2]
[364822090,1749255041775,-1050.35,0.00020273,2]
[364822091,1749255041785,-3090.81,0.00020273,2]
[364822092,1749255041794,-440.0,0.00020273,2]
[364822093,1749255041805,-440.0,0.00020273,2]
[364822094,1749255041814,-282.81,0.00020273,2]
[364822095,1749255041824,-440.0,0.00020273,2]
[364822096,1749255041834,-704.83,0.00020273,2]
[364822097,1749255041843,-440.0,0.00020273,2]
[364822098,1749255041852,-440.0,0.00020273,2]
[364822099,1749255041862,-1715.61,0.00020273,2]
[364822100,1749255041871,-2851.73,0.00020273,2]
[364822101,1749255041882,-1510.1,0.00020273,2]
[364822102,1749255041891,-491.82,0.00020273,2]
[364822103,1749255041901,-440.0,0.00020273,2]
[364822104,1749255041910,-440.0,0.00020273,2]
[364822105,1749255041920,-440.0,0.00020273,2]
[364822106,1749255041930,-408.15956243,0.00020273,2]
[364822107,1749255041940,-577.36,0.00020273,2]
[364822108,1749255041950,-440.0,0.00020273,2]
[364822109,1749255041959,-440.0,0.00020273,2]
[364822110,1749255041969,-440.0,0.00020273,2]
[364822111,1749255041981,-440.0,0.00020273,2]
[364822112,1749255041990,-440.0,0.00020273,2]
[364822113,1749255042000,-440.0,0.00020273,2]
[364822114,1749255042009,-440.0,0.00020273,2]
[364822115,1749255042019,-440.0,0.00020273,2]
[364822116,1749255042028,-440.0,0.00020273,2]
[364822117,1749255042037,-1349.1,0.00020273,2]
[364822118,1749255042047,-440.0,0.00020273,2]
[364822119,1749255042056,-440.0,0.00020273,2]
[364822120,1749255042065,-440.0,0.00020273,2]
[364822121,1749255042075,-440.0,0.00020273,2]
[364822122,1749255042085,-440.0,0.00020273,2]
[364822123,1749255042094,-525.00232136,0.00020273,2]
[364822124,1749255042104,-440.0,0.00020273,2]
[364822125,1749255042113,-440.0,0.00020273,2]
[364822126,1749255042122,-151.0,0.00020273,2]
[364822127,1749255042132,-440.0,0.00020273,2]
[364822128,1749255042141,-440.0,0.00020273,2]
[364822129,1749255042151,-530.0,0.00020273,2]
[364822130,1749255042160,-440.0,0.00020273,2]
[364822131,1749255042169,-440.0,0.00020273,2]
[364822132,1749255042179,-440.0,0.00020273,2]
[364822133,1749255042189,-1632.05,0.00020273,2]
[364822134,1749255042198,-440.0,0.00020273,2]
[364822135,1749255042207,-440.0,0.00020273,2]
[364822136,1749255042217,-440.0,0.00020273,2]
[364822137,1749255042226,-440.0,0.00020273,2]
[364822138,1749255042238,-440.0,0.00020273,2]
[364822139,1749255042247,-440.0,0.00020273,2]
[364822140,1749255042257,-440.0,0.00020273,2]
[364822141,1749255042266,-878.96,0.00020273,2]
[364822142,1749255042276,-440.0,0.00020273,2]
[364822143,1749255042286,-596.71,0.00020273,2]
[364822144,1749255042295,-2752.03,0.00020273,2]
[364822145,1749255042305,-440.0,0.00020273,2]
[364822146,1749255042315,-579.14,0.00020273,2]
[364822147,1749255042325,-440.0,0.00020273,2]
[364822148,1749255042334,-440.0,0.00020273,2]
[364822149,1749255042344,-3769.0,0.00020273,2]
[364822150,1749255042354,-1680.78,0.00020273,2]
[364822151,1749255042363,-1978.95106066,0.00020311,2]
[364822152,1749255042374,-715.08884394,0.00020417,3]
[364822153,1749255042383,-701.71,0.00020546,2]
[364822154,1749255042393,-701.71,0.00020546,2]
[364822155,1749255042402,-440.0,0.00020547,2]
[364822156,1749255042412,-2806.4,0.00020547,2]
[364822157,1749255042422,-2806.4,0.00020547,2]
[364822158,1749255042432,-2806.4,0.00020547,2]
[364822159,1749255042442,-2806.4,0.00020547,2]
[364822160,1749255042452,-2806.4,0.00020547,2]
[364822161,1749255042463,-2806.4,0.00020547,2]
[364822162,1749255042472,-2806.4,0.00020547,2]
[364822163,1749255042484,-2806.4,0.00020547,2]
[364822164,1749255042494,-440.0,0.00020547,2]
[364822165,1749255042503,-440.0,0.00020547,2]
[364822166,1749255042513,-370.0,0.00020547,2]
[364822167,1749255042523,-370.0,0.00020547,2]
[364822168,1749255042533,-440.0,0.00020547,2]
[364822169,1749255042542,-385.0265787,0.00020547,2]
[364822170,1749255042552,-440.0,0.00020547,2]
[364822171,1749255042561,-440.0,0.00020547,2]
[364822172,1749255042571,-440.0,0.00020547,2]
[364822173,1749255042581,-440.0,0.00020547,2]
[364822174,1749255042590,-440.0,0.00020547,2]
[364822175,1749255042600,-440.0,0.00020547,2]
[364822176,1749255042610,-640.15,0.00020547,2]
[364822177,1749255042619,-4753.64,0.00020547,2]
[364822178,1749255042630,-440.0,0.00020547,2]
[364822179,1749255042643,-1050.35,0.00020547,2]
[364822180,1749255042655,-440.0,0.00020547,2]
[364822181,1749255042665,-3090.81,0.00020547,2]
[364822182,1749255042675,-440.0,0.00020547,2]
[364822183,1749255042684,-370.0,0.00020547,2]
[364822184,1749255042694,-704.83,0.00020547,2]
[364822185,1749255042703,-440.0,0.00020547,2]
[364822186,1749255042713,-440.0,0.00020547,2]
[364822187,1749255042726,-151.0,0.00020547,2]
[364822188,1749255042737,-1715.61,0.00020547,2]
[364822189,1749255042746,-2851.73,0.00020547,2]
[364822190,1749255042755,-1510.1,0.00020547,2]
[364822191,1749255042766,-491.82,0.00020547,2]
[364822192,1749255042775,-373.62550337,0.00020547,2]
[364822193,1749255042784,-440.0,0.00020547,2]
[364822194,1749255042794,-440.0,0.00020547,2]
[364822195,1749255042808,-577.36,0.00020547,2]
[364822196,1749255042818,-440.0,0.00020547,2]
[364822197,1749255042828,-440.0,0.00020547,2]
[364822198,1749255042837,-440.0,0.00020547,2]
[364822199,1749255042847,-440.0,0.00020547,2]
[364822200,1749255042857,-440.0,0.00020547,2]
[364822201,1749255042866,-151.0,0.00020547,2]
[364822203,1749255042875,-440.0,0.00020547,2]
[364822205,1749255042887,-440.0,0.00020547,2]
[364822207,1749255042896,-440.0,0.00020547,2]
[364822209,1749255042906,-440.0,0.00020547,2]
[364822211,1749255042916,-1349.1,0.00020547,2]
[364822213,1749255042925,-440.0,0.00020547,2]
[364822215,1749255042934,-440.0,0.00020547,2]
[364822217,1749255042944,-440.0,0.00020547,2]
[364822219,1749255042954,-440.0,0.00020547,2]
[364822222,1749255042964,-440.0,0.00020547,2]
[364822224,1749255042974,-440.0,0.00020547,2]
[364822226,1749255042986,-440.0,0.00020547,2]
[364822228,1749255042995,-440.0,0.00020547,2]
[364822230,1749255043005,-440.0,0.00020547,2]
[364822232,1749255043014,-440.0,0.00020547,2]
[364822234,1749255043025,-440.0,0.00020547,2]
[364822235,1749255043034,-440.0,0.00020547,2]
[364822236,1749255043043,-1632.05,0.00020547,2]
[364822237,1749255043053,-440.0,0.00020547,2]
[364822238,1749255043063,-440.0,0.00020547,2]
[364822239,1749255043072,-440.0,0.00020547,2]
[364822240,1749255043082,-440.0,0.00020547,2]
[364822241,1749255043092,-440.0,0.00020547,2]
[364822242,1749255043102,-440.0,0.00020547,2]
[364822243,1749255043111,-440.0,0.00020547,2]
[364822244,1749255043120,-878.96,0.00020547,2]
[364822246,1749255043130,-440.0,0.00020547,2]
[364822248,1749255043140,-596.71,0.00020547,2]
[364822249,1749255043151,-2752.03,0.00020547,2]
[364822250,1749255043160,-440.0,0.00020547,2]
[364822251,1749255043170,-579.14,0.00020547,2]
[364822252,1749255043179,-440.0,0.00020547,2]
[364822253,1749255043189,-440.0,0.00020547,2]
[364822254,1749255043198,-3769.0,0.00020547,2]
[364822255,1749255043207,-1680.78,0.00020547,2]
[364822256,1749255043216,-167.61938942,0.00020548,2]
[364822257,1749255043226,-715.08884394,0.0002059,3]
[364822258,1749255043236,-585.55,0.000206,2]
[364822259,1749255043246,-715.08884394,0.00020762,3]
[364822260,1749255043255,-500.0,0.00020807,2]
[364822261,1749255043265,-500.0,0.00020807,2]
[364822262,1749255043275,-500.0,0.00020807,2]
[364822263,1749255043284,-500.0,0.00020807,2]
[364822264,1749255043293,-500.0,0.00020807,2]
[364822265,1749255043303,-500.0,0.00020807,2]
[364822266,1749255043313,-500.0,0.00020807,2]
[364822267,1749255043323,-500.0,0.00020807,2]
[364822268,1749255043335,-500.0,0.00020807,2]
[364822269,1749255043344,-500.0,0.00020807,2]
[364822270,1749255043355,-500.0,0.00020807,2]
[364822271,1749255043365,-500.0,0.00020807,2]
[364822272,1749255043374,-500.0,0.00020807,2]
[364822273,1749255043385,-5000.0,0.00020807,2]
[364822274,1749255043394,-500.0,0.00020807,2]
[364822275,1749255043403,-500.0,0.00020807,2]
[364822276,1749255043413,-500.0,0.00020807,2]
[364822277,1749255043422,-500.0,0.00020807,2]
[364822278,1749255043432,-500.0,0.00020807,2]
[364822279,1749255043441,-500.0,0.00020807,2]
[364822280,1749255043451,-500.0,0.00020807,2]
[364822281,1749255043461,-500.0,0.00020807,2]
[364822282,1749255043470,-500.0,0.00020807,2]
[364822284,1749255043480,-500.0,0.00020807,2]
[364822286,1749255043489,-500.0,0.00020807,2]
[364822288,1749255043499,-500.0,0.00020807,2]
[364822289,1749255043509,-500.0,0.00020807,2]
[364822290,1749255043519,-500.0,0.00020807,2]
[364822291,1749255043528,-500.0,0.00020807,2]
[364822292,1749255043538,-500.0,0.00020807,2]
[364822293,1749255043547,-500.0,0.00020807,2]
[364822295,1749255043557,-207.4,0.00020807,2]
[364822296,1749255043566,-1749.41132836,0.00020816,2]
[364822297,1749255043575,-370.0,0.00020821,2]
[364822298,1749255043585,-440.0,0.00020821,2]
[364822299,1749255043594,-440.0,0.00020821,2]